[Event "Early-Titled-Tuesday-Blitz-November-28-2023"]
[Site "Chess.com"]
[Date "2023.11.28"]
[Round "11"]
[White "Alexchess1984"]
[Black "chesstrainer2042"]
[Result "1-0"]
[WhiteElo "2708"]
[BlackElo "2533"]
[TimeControl "180+1"]
[EndTime "10:12:17 PST"]
[Termination "Alexchess1984 won on time"]

1. e4 {[%clk 0:02:57.1]} 1... c5 {[%clk 0:02:57.6]} 2. c3 {[%clk 0:02:57]} 2...
Nf6 {[%clk 0:02:56.6]} 3. e5 {[%clk 0:02:56.9]} 3... Nd5 {[%clk 0:02:57.2]} 4.
Bc4 {[%clk 0:02:57.4]} 4... Nb6 {[%clk 0:02:55.5]} 5. Bb3 {[%clk 0:02:57.7]}
5... d6 {[%clk 0:02:56.2]} 6. exd6 {[%clk 0:02:45.1]} 6... Qxd6 {[%clk
0:02:52.4]} 7. Nf3 {[%clk 0:02:45.7]} 7... Nc6 {[%clk 0:02:51.8]} 8. O-O {[%clk
0:02:45.7]} 8... Bf5 {[%clk 0:02:41.2]} 9. d4 {[%clk 0:02:42]} 9... e6 {[%clk
0:02:40.3]} 10. Na3 {[%clk 0:02:36.3]} 10... a6 {[%clk 0:02:30.3]} 11. Be3
{[%clk 0:02:35.8]} 11... cxd4 {[%clk 0:02:27.4]} 12. Nxd4 {[%clk 0:02:35.6]}
12... Nxd4 {[%clk 0:02:24.9]} 13. Bxd4 {[%clk 0:02:36.5]} 13... O-O-O {[%clk
0:02:17.5]} 14. Qf3 {[%clk 0:02:28.5]} 14... Qc7 {[%clk 0:02:17.7]} 15. Rfd1
{[%clk 0:02:20.6]} 15... h5 {[%clk 0:01:57.8]} 16. h3 {[%clk 0:02:17.3]} 16...
Bg6 {[%clk 0:00:42.9]} 17. Nc2 {[%clk 0:01:26.8]} 17... Rg8 {[%clk 0:00:38.4]}
18. Ne3 {[%clk 0:01:24.5]} 18... Bc5 {[%clk 0:00:38.2]} 19. a4 {[%clk
0:01:19.5]} 19... Kb8 {[%clk 0:00:38.1]} 20. a5 {[%clk 0:01:18.8]} 20... Nc8
{[%clk 0:00:38]} 21. Nc4 {[%clk 0:01:05.1]} 21... Bxd4 {[%clk 0:00:26.8]} 22.
cxd4 {[%clk 0:01:06]} 22... Na7 {[%clk 0:00:22.5]} 23. Rac1 {[%clk 0:01:03.3]}
23... Nc6 {[%clk 0:00:21.5]} 24. Nb6 {[%clk 0:00:49.6]} 24... Nxd4 {[%clk
0:00:19]} 25. Qe3 {[%clk 0:00:49.6]} 25... Nc6 {[%clk 0:00:13.8]} 26. Rxd8+
{[%clk 0:00:46.4]} 26... Rxd8 {[%clk 0:00:13.3]} 27. Ba4 {[%clk 0:00:47]} 27...
Rd6 {[%clk 0:00:12.1]} 28. b4 {[%clk 0:00:44.6]} 28... Qd8 {[%clk 0:00:09.7]}
29. Bxc6 {[%clk 0:00:43.1]} 29... Rxc6 {[%clk 0:00:10.1]} 30. Rxc6 {[%clk
0:00:43.5]} 30... bxc6 {[%clk 0:00:10.5]} 31. Qe5+ {[%clk 0:00:44.4]} 31... Kb7
{[%clk 0:00:10.3]} 32. Qxg7 {[%clk 0:00:44.2]} 32... Qd1+ {[%clk 0:00:10.4]} 33.
Kh2 {[%clk 0:00:44.7]} 33... Qd6+ {[%clk 0:00:11]} 34. g3 {[%clk 0:00:44.6]}
34... Qxb4 {[%clk 0:00:10.7]} 35. Qe5 {[%clk 0:00:42.5]} 35... Qd2 {[%clk
0:00:08]} 36. Kg2 {[%clk 0:00:38.1]} 36... h4 {[%clk 0:00:07.8]} 37. gxh4 {[%clk
0:00:37.8]} 37... Qd3 {[%clk 0:00:06.1]} 38. f3 {[%clk 0:00:28]} 38... Qd2+
{[%clk 0:00:04.5]} 39. Kg3 {[%clk 0:00:27.9]} 39... Qd1 {[%clk 0:00:02.6]} 40.
Qe3 {[%clk 0:00:18.3]} 40... Bf5 {[%clk 0:00:02.7]} 41. Nc4 {[%clk 0:00:17]}
41... Qf1 {[%clk 0:00:02.8]} 42. Qb6+ {[%clk 0:00:16.8]} 42... Kc8 {[%clk
0:00:02.3]} 43. Qxc6+ {[%clk 0:00:14.9]} 43... Kd8 {[%clk 0:00:01.9]} 44. Qd6+
{[%clk 0:00:11.8]} 44... Ke8 {[%clk 0:00:02.1]} 45. Qb8+ {[%clk 0:00:12.4]}
45... Ke7 {[%clk 0:00:02.5]} 46. Qc7+ {[%clk 0:00:12.3]} 46... Kf8 {[%clk
0:00:02.1]} 47. Qd8+ {[%clk 0:00:12.6]} 47... Kg7 {[%clk 0:00:02.3]} 48. Qg5+
{[%clk 0:00:13.2]} 48... Kf8 {[%clk 0:00:02.9]} 49. Ne3 {[%clk 0:00:10.1]} 1-0

[Event "Early-Titled-Tuesday-Blitz-November-28-2023"]
[Site "Chess.com"]
[Date "2023.11.28"]
[Round "11"]
[White "Alen_Yeremyann"]
[Black "DanylaBagrov"]
[Result "1-0"]
[WhiteElo "2779"]
[BlackElo "2590"]
[TimeControl "180+1"]
[EndTime "10:12:18 PST"]
[Termination "Alen_Yeremyann won on time"]

1. e4 {[%clk 0:02:59.8]} 1... Nc6 {[%clk 0:02:45.5]} 2. g3 {[%clk 0:02:59.2]}
2... d5 {[%clk 0:02:45.4]} 3. Bg2 {[%clk 0:02:59.5]} 3... dxe4 {[%clk
0:02:44.4]} 4. Bxe4 {[%clk 0:03:00.4]} 4... Nf6 {[%clk 0:02:44.7]} 5. Bg2 {[%clk
0:03:01.1]} 5... e5 {[%clk 0:02:43.8]} 6. Ne2 {[%clk 0:03:01.2]} 6... Bc5 {[%clk
0:02:39.8]} 7. O-O {[%clk 0:03:01.3]} 7... O-O {[%clk 0:02:39.4]} 8. d3 {[%clk
0:03:02]} 8... Bg4 {[%clk 0:02:35.7]} 9. h3 {[%clk 0:03:01.4]} 9... Bh5 {[%clk
0:02:29.1]} 10. Nbc3 {[%clk 0:03:01.4]} 10... Nd4 {[%clk 0:02:13.4]} 11. g4
{[%clk 0:03:00.2]} 11... Bg6 {[%clk 0:02:01.1]} 12. Nxd4 {[%clk 0:02:51.4]}
12... Bxd4 {[%clk 0:01:58.4]} 13. Ne2 {[%clk 0:02:51.6]} 13... Bc5 {[%clk
0:01:47.8]} 14. Be3 {[%clk 0:02:50.8]} 14... Bxe3 {[%clk 0:01:45.4]} 15. fxe3
{[%clk 0:02:51.7]} 15... c6 {[%clk 0:01:40.8]} 16. Rb1 {[%clk 0:02:40.6]} 16...
Qa5 {[%clk 0:01:37.6]} 17. a3 {[%clk 0:02:39.8]} 17... Rad8 {[%clk 0:01:33.3]}
18. Qe1 {[%clk 0:02:36.9]} 18... Qc5 {[%clk 0:01:32.2]} 19. Nc3 {[%clk
0:02:37.3]} 19... Nd5 {[%clk 0:01:20.1]} 20. Nxd5 {[%clk 0:02:31]} 20... cxd5
{[%clk 0:01:19.9]} 21. Qf2 {[%clk 0:02:30.9]} 21... Rc8 {[%clk 0:01:04.1]} 22.
Rbc1 {[%clk 0:02:26.6]} 22... b5 {[%clk 0:00:59.5]} 23. Kh1 {[%clk 0:02:17.1]}
23... Rfd8 {[%clk 0:00:49.7]} 24. d4 {[%clk 0:02:16.3]} 24... Qe7 {[%clk
0:00:44.9]} 25. c3 {[%clk 0:02:13.6]} 25... Bd3 {[%clk 0:00:41.4]} 26. Rfd1
{[%clk 0:02:12.3]} 26... e4 {[%clk 0:00:41.7]} 27. Rd2 {[%clk 0:02:09.3]} 27...
Rc6 {[%clk 0:00:41.4]} 28. Qg3 {[%clk 0:02:08.8]} 28... Rg6 {[%clk 0:00:39.9]}
29. Bf1 {[%clk 0:02:08.4]} 29... Bc4 {[%clk 0:00:38.1]} 30. Bxc4 {[%clk
0:02:06.9]} 30... bxc4 {[%clk 0:00:39]} 31. Rf2 {[%clk 0:02:07.7]} 31... h5
{[%clk 0:00:38.3]} 32. Rcf1 {[%clk 0:02:06.4]} 32... Rf8 {[%clk 0:00:36]} 33.
Rf5 {[%clk 0:02:00.9]} 33... hxg4 {[%clk 0:00:34.6]} 34. hxg4 {[%clk 0:02:01.8]}
34... Rh6+ {[%clk 0:00:32.7]} 35. Kg2 {[%clk 0:02:02.4]} 35... Qb7 {[%clk
0:00:32.5]} 36. R1f2 {[%clk 0:02:01.9]} 36... Qb3 {[%clk 0:00:26.5]} 37. g5
{[%clk 0:01:59.8]} 37... Rg6 {[%clk 0:00:21.1]} 38. Qg4 {[%clk 0:02:00.4]} 38...
Qb7 {[%clk 0:00:17.4]} 39. Kg1 {[%clk 0:01:58.2]} 39... Qd7 {[%clk 0:00:18.1]}
40. Rh2 {[%clk 0:01:56.7]} 40... f6 {[%clk 0:00:17.7]} 41. Rg2 {[%clk
0:01:50.6]} 41... Rf7 {[%clk 0:00:13.3]} 42. Rf4 {[%clk 0:01:32.8]} 42... fxg5
{[%clk 0:00:13]} 43. Qxd7 {[%clk 0:01:27.8]} 43... Rxd7 {[%clk 0:00:12.8]} 44.
Rf5 {[%clk 0:01:28.4]} 44... Kh7 {[%clk 0:00:11.7]} 45. Kh2 {[%clk 0:01:24.2]}
45... Rh6+ {[%clk 0:00:11.6]} 46. Kg3 {[%clk 0:01:24.4]} 46... Rg6 {[%clk
0:00:10.8]} 47. Kg4 {[%clk 0:01:24.1]} 47... Rb6 {[%clk 0:00:10.9]} 48. Rxg5
{[%clk 0:01:20.9]} 48... Rdd6 {[%clk 0:00:10.5]} 49. Rh2+ {[%clk 0:01:20.6]}
49... Kg8 {[%clk 0:00:10]} 50. Re5 {[%clk 0:01:16.3]} 50... Rg6+ {[%clk
0:00:09.7]} 51. Kf4 {[%clk 0:01:09.1]} 51... Rgf6+ {[%clk 0:00:10.2]} 52. Rf5
{[%clk 0:01:08.6]} 52... Kf7 {[%clk 0:00:09.4]} 53. Rxf6+ {[%clk 0:01:06.9]}
53... Kxf6 {[%clk 0:00:09.1]} 54. Rf2 {[%clk 0:01:04.8]} 54... g5+ {[%clk
0:00:09.4]} 55. Kg4+ {[%clk 0:01:05.3]} 55... Kg6 {[%clk 0:00:10.2]} 56. Rf8
{[%clk 0:01:01.2]} 56... Rxb2 {[%clk 0:00:08.3]} 57. Rd8 {[%clk 0:01:01.9]}
57... Rb3 {[%clk 0:00:08.4]} 58. Rd6+ {[%clk 0:01:02]} 58... Kf7 {[%clk
0:00:07.6]} 59. Kxg5 {[%clk 0:01:02]} 59... Rxc3 {[%clk 0:00:07.6]} 60. Kf4
{[%clk 0:01:02.7]} 60... Rxa3 {[%clk 0:00:06.4]} 61. Rxd5 {[%clk 0:01:03.3]}
61... c3 {[%clk 0:00:07.1]} 62. Kxe4 {[%clk 0:01:03.7]} 62... Ke6 {[%clk
0:00:04.8]} 63. Rc5 {[%clk 0:01:04.1]} 63... Kd6 {[%clk 0:00:05.1]} 64. Kd3
{[%clk 0:01:04.1]} 64... c2+ {[%clk 0:00:05.6]} 65. Kd2 {[%clk 0:01:04.4]} 65...
c1=Q+ {[%clk 0:00:02.5]} 66. Rxc1 {[%clk 0:01:04.4]} 66... Kd5 {[%clk
0:00:03.4]} 67. Rc3 {[%clk 0:01:04.5]} 67... Ra2+ {[%clk 0:00:02.9]} 68. Kd3
{[%clk 0:01:04.9]} 68... Ra1 {[%clk 0:00:03.8]} 69. e4+ {[%clk 0:01:04.7]} 69...
Kd6 {[%clk 0:00:04.5]} 70. e5+ {[%clk 0:01:05.4]} 70... Ke6 {[%clk 0:00:04.2]}
71. Rc6+ {[%clk 0:01:05.6]} 71... Kd7 {[%clk 0:00:04.7]} 72. Rd6+ {[%clk
0:01:05.6]} 72... Ke7 {[%clk 0:00:04.9]} 73. Ke4 {[%clk 0:01:06.4]} 73... Ra2
{[%clk 0:00:03.2]} 74. Rh6 {[%clk 0:01:05.9]} 74... a5 {[%clk 0:00:01.6]} 75.
Kd5 {[%clk 0:01:05.9]} 75... a4 {[%clk 0:00:01.7]} 76. Rh7+ {[%clk 0:01:06.6]}
76... Kf8 {[%clk 0:00:01.8]} 77. Ra7 {[%clk 0:01:07.5]} 77... a3 {[%clk
0:00:01.7]} 78. e6 {[%clk 0:01:07.8]} 78... Ra1 {[%clk 0:00:01.5]} 79. Kd6
{[%clk 0:01:08.2]} 79... a2 {[%clk 0:00:01.8]} 80. d5 {[%clk 0:01:09]} 1-0

[Event "Early-Titled-Tuesday-Blitz-November-28-2023"]
[Site "Chess.com"]
[Date "2023.11.28"]
[Round "11"]
[White "Ginzburg_Yakov"]
[Black "Der_Balak_3Halak"]
[Result "0-1"]
[WhiteElo "2602"]
[BlackElo "2355"]
[TimeControl "180+1"]
[EndTime "10:12:19 PST"]
[Termination "Der_Balak_3Halak won by resignation"]

1. e4 {[%clk 0:02:59.9]} 1... c5 {[%clk 0:02:58.1]} 2. c3 {[%clk 0:02:59.9]}
2... Nf6 {[%clk 0:02:57.2]} 3. e5 {[%clk 0:02:55.6]} 3... Nd5 {[%clk 0:02:57.4]}
4. d4 {[%clk 0:02:56.5]} 4... cxd4 {[%clk 0:02:58.3]} 5. Nf3 {[%clk 0:02:56.6]}
5... Nc6 {[%clk 0:02:57.4]} 6. Bc4 {[%clk 0:02:56.5]} 6... e6 {[%clk 0:02:39.4]}
7. cxd4 {[%clk 0:02:53.6]} 7... d6 {[%clk 0:02:38.2]} 8. Bxd5 {[%clk 0:02:52.6]}
8... exd5 {[%clk 0:02:37.3]} 9. O-O {[%clk 0:02:50.9]} 9... dxe5 {[%clk
0:02:31.2]} 10. Nxe5 {[%clk 0:02:49.6]} 10... Be6 {[%clk 0:02:23.2]} 11. Nxc6
{[%clk 0:02:48]} 11... bxc6 {[%clk 0:02:24.1]} 12. Qa4 {[%clk 0:02:46.2]} 12...
Qd7 {[%clk 0:02:21]} 13. b3 {[%clk 0:02:45.5]} 13... Bd6 {[%clk 0:02:10.5]} 14.
Ba3 {[%clk 0:02:44.7]} 14... O-O {[%clk 0:01:45.3]} 15. Nc3 {[%clk 0:02:42.1]}
15... Rac8 {[%clk 0:01:06.2]} 16. Qa5 {[%clk 0:02:38.5]} 16... Bc7 {[%clk
0:00:52.7]} 17. Qa6 {[%clk 0:02:38.5]} 17... Rfe8 {[%clk 0:00:51.4]} 18. Na4
{[%clk 0:02:38.3]} 18... Bf5 {[%clk 0:00:45.8]} 19. Rfe1 {[%clk 0:02:34.8]}
19... h5 {[%clk 0:00:27.2]} 20. Qf1 {[%clk 0:02:20]} 20... h4 {[%clk 0:00:25.9]}
21. Rxe8+ {[%clk 0:02:19.2]} 21... Rxe8 {[%clk 0:00:25.3]} 22. Re1 {[%clk
0:02:18.9]} 22... Bd3 {[%clk 0:00:22.7]} 23. Rxe8+ {[%clk 0:02:17.5]} 23... Qxe8
{[%clk 0:00:23.6]} 24. Qd1 {[%clk 0:02:11.1]} 24... Bc2 {[%clk 0:00:16.9]} 25.
Qd2 {[%clk 0:01:54.2]} 25... Bf4 {[%clk 0:00:16.7]} 26. Qc3 {[%clk 0:01:52.2]}
26... Qe2 {[%clk 0:00:16.2]} 27. Bb4 {[%clk 0:01:48]} 27... Be4 {[%clk
0:00:08.6]} 28. Nc5 {[%clk 0:01:42.6]} 28... Qd1+ {[%clk 0:00:04.4]} 29. Qe1
{[%clk 0:01:41.9]} 29... Qxd4 {[%clk 0:00:04.5]} 30. Nxe4 {[%clk 0:01:37.6]}
30... Qxe4 {[%clk 0:00:05.4]} 31. Qxe4 {[%clk 0:01:18.1]} 31... dxe4 {[%clk
0:00:06.3]} 32. a4 {[%clk 0:01:14.2]} 32... a6 {[%clk 0:00:06.5]} 33. Kf1 {[%clk
0:01:13.6]} 33... f5 {[%clk 0:00:06.9]} 34. Be7 {[%clk 0:01:13]} 34... Bxh2
{[%clk 0:00:06.8]} 35. Bxh4 {[%clk 0:01:12.1]} 35... Bd6 {[%clk 0:00:07.4]} 36.
Bd8 {[%clk 0:01:09.6]} 36... Kf7 {[%clk 0:00:07.4]} 37. Ke2 {[%clk 0:01:09.8]}
37... Ke6 {[%clk 0:00:07.9]} 38. Ba5 {[%clk 0:01:06.6]} 38... Kd5 {[%clk
0:00:08.8]} 39. Bc3 {[%clk 0:01:06.4]} 39... g5 {[%clk 0:00:09]} 40. Bf6 {[%clk
0:01:05.4]} 40... g4 {[%clk 0:00:08.7]} 41. Kd2 {[%clk 0:01:03.6]} 41... f4
{[%clk 0:00:08.5]} 42. Bg5 {[%clk 0:01:03.3]} 42... f3 {[%clk 0:00:08.7]} 43.
gxf3 {[%clk 0:01:02.8]} 43... gxf3 {[%clk 0:00:09.6]} 44. Kc3 {[%clk 0:00:53]}
44... Be5+ {[%clk 0:00:09.3]} 45. Kd2 {[%clk 0:00:53]} 45... Bh2 {[%clk
0:00:08.6]} 46. Be3 {[%clk 0:00:52.6]} 46... Bc7 {[%clk 0:00:07.7]} 47. Kc3
{[%clk 0:00:51.1]} 47... c5 {[%clk 0:00:06.3]} 48. Bg5 {[%clk 0:00:48.7]} 48...
Ba5+ {[%clk 0:00:06]} 49. Kc2 {[%clk 0:00:47.9]} 49... Be1 {[%clk 0:00:05.9]}
50. Be3 {[%clk 0:00:48.2]} 50... a5 {[%clk 0:00:06.1]} 51. Kd1 {[%clk 0:00:47]}
51... Bb4 {[%clk 0:00:05.7]} 52. Kc2 {[%clk 0:00:47.3]} 52... c4 {[%clk
0:00:06.2]} 53. Bf4 {[%clk 0:00:40.9]} 53... cxb3+ {[%clk 0:00:05.9]} 54. Kxb3
{[%clk 0:00:41.2]} 54... Bc5 {[%clk 0:00:06.2]} 55. Bg3 {[%clk 0:00:37]} 55...
e3 {[%clk 0:00:06.7]} 56. fxe3 {[%clk 0:00:36.2]} 56... Bxe3 {[%clk 0:00:07.6]}
57. Kc2 {[%clk 0:00:36.4]} 57... f2 {[%clk 0:00:08]} 58. Bxf2 {[%clk 0:00:36.1]}
58... Bxf2 {[%clk 0:00:08.9]} 59. Kd3 {[%clk 0:00:37]} 59... Bd4 {[%clk
0:00:08.9]} 60. Kc2 {[%clk 0:00:37]} 60... Kc4 {[%clk 0:00:09.8]} 0-1

[Event "Early-Titled-Tuesday-Blitz-November-28-2023"]
[Site "Chess.com"]
[Date "2023.11.28"]
[Round "11"]
[White "millenium19"]
[Black "Matols"]
[Result "0-1"]
[WhiteElo "2467"]
[BlackElo "2381"]
[TimeControl "180+1"]
[EndTime "10:12:19 PST"]
[Termination "Matols won by resignation"]

1. e4 {[%clk 0:02:52.1]} 1... c6 {[%clk 0:03:00.1]} 2. d4 {[%clk 0:02:51.8]}
2... d5 {[%clk 0:03:00.6]} 3. Nd2 {[%clk 0:02:51]} 3... dxe4 {[%clk 0:03:00.1]}
4. Nxe4 {[%clk 0:02:51.9]} 4... Nf6 {[%clk 0:03:00.4]} 5. Nxf6+ {[%clk
0:02:51.7]} 5... exf6 {[%clk 0:03:01.3]} 6. c3 {[%clk 0:02:51.9]} 6... Bd6
{[%clk 0:03:01]} 7. Bd3 {[%clk 0:02:52.1]} 7... O-O {[%clk 0:03:00.9]} 8. Qc2
{[%clk 0:02:53]} 8... Re8+ {[%clk 0:02:59.6]} 9. Ne2 {[%clk 0:02:53]} 9... h5
{[%clk 0:03:00.2]} 10. O-O {[%clk 0:02:50]} 10... Nd7 {[%clk 0:02:55.8]} 11. Bf4
{[%clk 0:02:46.3]} 11... Rxe2 {[%clk 0:02:45.8]} 12. Qxe2 {[%clk 0:02:46]} 12...
Bxf4 {[%clk 0:02:45.9]} 13. Qe4 {[%clk 0:02:46.5]} 13... Bxh2+ {[%clk
0:02:15.6]} 14. Kxh2 {[%clk 0:02:44.2]} 14... Nf8 {[%clk 0:02:15.4]} 15. Rae1
{[%clk 0:02:37]} 15... Qd6+ {[%clk 0:02:11.1]} 16. g3 {[%clk 0:02:33.3]} 16...
Be6 {[%clk 0:02:10.2]} 17. c4 {[%clk 0:02:20.9]} 17... Rd8 {[%clk 0:02:08.9]}
18. Rd1 {[%clk 0:02:20.7]} 18... Ng6 {[%clk 0:01:50.8]} 19. b3 {[%clk
0:01:40.2]} 19... h4 {[%clk 0:01:49.2]} 20. Bb1 {[%clk 0:01:32.9]} 20... b5
{[%clk 0:01:36.4]} 21. Qe2 {[%clk 0:01:25.5]} 21... bxc4 {[%clk 0:01:19.6]} 22.
bxc4 {[%clk 0:01:17.8]} 22... Rb8 {[%clk 0:01:00.8]} 23. d5 {[%clk 0:01:05.5]}
23... cxd5 {[%clk 0:00:57.1]} 24. cxd5 {[%clk 0:01:05.5]} 24... Bd7 {[%clk
0:00:54.9]} 25. Rfe1 {[%clk 0:00:55.3]} 25... Ne5 {[%clk 0:00:51]} 26. f4 {[%clk
0:00:42.5]} 26... Ng4+ {[%clk 0:00:45.2]} 27. Kh1 {[%clk 0:00:35.3]} 27... hxg3
{[%clk 0:00:43.2]} 28. Kg2 {[%clk 0:00:31.5]} 28... Qxf4 {[%clk 0:00:36]} 29.
Rd3 {[%clk 0:00:25.1]} 29... Qf2+ {[%clk 0:00:19.5]} 30. Qxf2 {[%clk 0:00:25]}
30... gxf2 {[%clk 0:00:20.4]} 31. Rh1 {[%clk 0:00:21.8]} 31... Bb5 {[%clk
0:00:19.7]} 32. Rb3 {[%clk 0:00:20.1]} 32... f1=Q+ {[%clk 0:00:19.6]} 33. Rxf1
{[%clk 0:00:20.1]} 33... Bxf1+ {[%clk 0:00:20.3]} 34. Kxf1 {[%clk 0:00:20]}
34... Rxb3 {[%clk 0:00:20.3]} 35. axb3 {[%clk 0:00:20.9]} 35... Kf8 {[%clk
0:00:20.5]} 36. Ke2 {[%clk 0:00:20.5]} 36... Ke7 {[%clk 0:00:21.1]} 37. Kd3
{[%clk 0:00:20]} 37... Kd6 {[%clk 0:00:21.6]} 38. Kd4 {[%clk 0:00:20.5]} 38...
Ne5 {[%clk 0:00:21.1]} 39. Bf5 {[%clk 0:00:20.6]} 39... g5 {[%clk 0:00:21.4]}
40. Ke4 {[%clk 0:00:19.9]} 40... Kc5 {[%clk 0:00:19.6]} 41. Bc8 {[%clk
0:00:19.1]} 41... a5 {[%clk 0:00:19.2]} 42. Bb7 {[%clk 0:00:18.9]} 42... Kd6
{[%clk 0:00:18.8]} 43. Bc8 {[%clk 0:00:18.8]} 43... g4 {[%clk 0:00:18.3]} 44.
Bf5 {[%clk 0:00:15.7]} 44... g3 {[%clk 0:00:18.3]} 45. Bh3 {[%clk 0:00:16.3]}
45... Kc5 {[%clk 0:00:16.3]} 46. Bg2 {[%clk 0:00:16]} 46... Kb4 {[%clk
0:00:15.4]} 47. d6 {[%clk 0:00:15.9]} 47... Kxb3 {[%clk 0:00:15]} 48. Kf5 {[%clk
0:00:16.2]} 48... Kc4 {[%clk 0:00:14.2]} 49. Kxf6 {[%clk 0:00:17.1]} 49... Nd7+
{[%clk 0:00:13.2]} 50. Ke7 {[%clk 0:00:17.1]} 50... Nb6 {[%clk 0:00:13.2]} 51.
Kxf7 {[%clk 0:00:12.8]} 51... Kc5 {[%clk 0:00:13]} 52. Ke7 {[%clk 0:00:12]}
52... a4 {[%clk 0:00:13.5]} 53. Bh3 {[%clk 0:00:09.7]} 53... a3 {[%clk
0:00:13.7]} 54. d7 {[%clk 0:00:09.6]} 54... Nxd7 {[%clk 0:00:13.4]} 55. Kxd7
{[%clk 0:00:10.5]} 55... a2 {[%clk 0:00:13.4]} 0-1

[Event "Early-Titled-Tuesday-Blitz-November-28-2023"]
[Site "Chess.com"]
[Date "2023.11.28"]
[Round "11"]
[White "HanSchut"]
[Black "ideika"]
[Result "1-0"]
[WhiteElo "2275"]
[BlackElo "2161"]
[TimeControl "180+1"]
[EndTime "10:12:19 PST"]
[Termination "HanSchut won on time"]

1. e3 {[%clk 0:02:53.5]} 1... d5 {[%clk 0:02:59.6]} 2. f4 {[%clk 0:02:54]} 2...
Nf6 {[%clk 0:02:59.1]} 3. Nf3 {[%clk 0:02:54]} 3... c5 {[%clk 0:02:59.1]} 4. b3
{[%clk 0:02:54.1]} 4... Nc6 {[%clk 0:02:58.8]} 5. Bb5 {[%clk 0:02:54.2]} 5...
Bd7 {[%clk 0:02:58.1]} 6. Bb2 {[%clk 0:02:54]} 6... e6 {[%clk 0:02:57.8]} 7. O-O
{[%clk 0:02:52.4]} 7... Be7 {[%clk 0:02:57.8]} 8. d3 {[%clk 0:02:51.4]} 8... a6
{[%clk 0:02:57]} 9. Bxc6 {[%clk 0:02:51.6]} 9... Bxc6 {[%clk 0:02:57.9]} 10. Ne5
{[%clk 0:02:52.4]} 10... Rc8 {[%clk 0:02:58.1]} 11. Nd2 {[%clk 0:02:52.2]} 11...
b5 {[%clk 0:02:58]} 12. Ndf3 {[%clk 0:02:50.6]} 12... O-O {[%clk 0:02:57.7]} 13.
Qe1 {[%clk 0:02:50.5]} 13... Bb7 {[%clk 0:02:37.9]} 14. g4 {[%clk 0:02:50.1]}
14... Nd7 {[%clk 0:02:34.8]} 15. g5 {[%clk 0:02:34.8]} 15... Nxe5 {[%clk
0:02:18.2]} 16. Nxe5 {[%clk 0:02:31.3]} 16... d4 {[%clk 0:01:53.7]} 17. e4
{[%clk 0:02:26.4]} 17... f6 {[%clk 0:01:52.3]} 18. gxf6 {[%clk 0:02:26.3]} 18...
Bxf6 {[%clk 0:01:46.2]} 19. Ng4 {[%clk 0:01:59.1]} 19... Bh4 {[%clk 0:01:41.8]}
20. Qe2 {[%clk 0:01:52.7]} 20... c4 {[%clk 0:01:41.5]} 21. dxc4 {[%clk
0:01:40.5]} 21... bxc4 {[%clk 0:01:41.3]} 22. bxc4 {[%clk 0:01:28.5]} 22... Qb6
{[%clk 0:01:36.6]} 23. Kh1 {[%clk 0:01:20.6]} 23... Qxb2 {[%clk 0:01:35.6]} 24.
Rab1 {[%clk 0:01:20.7]} 24... Qxa2 {[%clk 0:01:24.2]} 25. Rxb7 {[%clk
0:01:20.3]} 25... Qxc4 {[%clk 0:01:24]} 26. Qg2 {[%clk 0:01:14.3]} 26... Rc7
{[%clk 0:01:03.8]} 27. Rxc7 {[%clk 0:01:06.2]} 27... Qxc7 {[%clk 0:01:03.7]} 28.
Ne5 {[%clk 0:01:00]} 28... Bf6 {[%clk 0:00:58.8]} 29. Nd3 {[%clk 0:00:56.3]}
29... Rc8 {[%clk 0:00:53.4]} 30. e5 {[%clk 0:00:55.3]} 30... Be7 {[%clk
0:00:52.8]} 31. Qh3 {[%clk 0:00:47.7]} 31... Qc6+ {[%clk 0:00:45.4]} 32. Kg1
{[%clk 0:00:47.2]} 32... Bf8 {[%clk 0:00:40.7]} 33. f5 {[%clk 0:00:41.4]} 33...
exf5 {[%clk 0:00:40.3]} 34. Qxf5 {[%clk 0:00:42.3]} 34... Qg6+ {[%clk
0:00:33.8]} 35. Qxg6 {[%clk 0:00:39.7]} 35... hxg6 {[%clk 0:00:34.7]} 36. Rf2
{[%clk 0:00:37.3]} 36... a5 {[%clk 0:00:34.6]} 37. Nb2 {[%clk 0:00:37.7]} 37...
Bc5 {[%clk 0:00:30.2]} 38. Kg2 {[%clk 0:00:31.7]} 38... Rb8 {[%clk 0:00:18.6]}
39. Nd3 {[%clk 0:00:23.8]} 39... Be7 {[%clk 0:00:18.2]} 40. Rf1 {[%clk
0:00:18.1]} 40... a4 {[%clk 0:00:17.9]} 41. Ra1 {[%clk 0:00:18.2]} 41... a3
{[%clk 0:00:18.2]} 42. Kf3 {[%clk 0:00:18.9]} 42... Rc8 {[%clk 0:00:17.9]} 43.
Ne1 {[%clk 0:00:17.6]} 43... Rc3+ {[%clk 0:00:10.8]} 44. Ke2 {[%clk 0:00:12.6]}
44... Kf7 {[%clk 0:00:07.6]} 45. Kd1 {[%clk 0:00:10]} 45... Ke6 {[%clk
0:00:07.1]} 46. Nd3 {[%clk 0:00:10.4]} 46... g5 {[%clk 0:00:05.3]} 47. h3 {[%clk
0:00:10.4]} 47... Kd5 {[%clk 0:00:05.2]} 48. Kd2 {[%clk 0:00:07.7]} 1-0